bitfinex/quotes_SOLUSD_20241123
["timestamp","ask_amount","ask_price","bid_price","bid_amount"]
[1732385469423,7.60236404,255.94,255.89,3.55398345]
[1732385469615,7.60236404,255.94,255.9,3.55398345]
[1732385469818,7.60236404,255.94,255.86,20.0]
[1732385469819,7.60236404,255.94,255.91,3.55398345]
[1732385470200,7.60236404,255.94,255.92,3.55398345]
[1732385470407,7.60236404,255.94,255.93,3.55398345]
[1732385471801,7.60236404,255.94,255.82,20.0]
[1732385471998,7.60236404,255.9,255.83,3.5644598]
[1732385472209,7.60236404,255.9,255.84,3.5644598]
[1732385472506,7.60236404,255.9,255.85,3.5644598]
[1732385472721,7.60236404,255.9,255.86,3.5644598]
[1732385473018,7.60236404,255.88,255.87,3.5644598]
[1732385473533,20.0,256.01,255.87,3.5644598]
[1732385473825,7.60236404,255.91,255.88,3.5644598]
[1732385474022,7.60236404,255.91,255.89,3.5644598]
[1732385474227,7.60236404,255.9,255.8,27.60236404]
[1732385474421,7.60236404,255.88,255.8,27.60236404]
[1732385475109,7.60236404,255.9,255.8,27.60236404]
[1732385475923,20.0,256.01,255.83,20.0]
[1732385476103,7.60236404,255.92,255.83,20.0]
[1732385476955,7.60236404,255.9,255.8,27.60236404]
[1732385477741,7.60236404,255.86,255.8,20.0]
[1732385477941,7.60236404,255.86,255.76,13.81846404]
[1732385478344,7.60236404,255.86,255.78,7.60236404]
[1732385479153,7.60236404,255.86,255.8,20.0]
[1732385480450,7.60236404,255.86,255.76,13.81846404]
[1732385482555,7.60236404,255.86,255.78,7.60236404]
[1732385482928,7.60236404,255.89,255.8,7.60236404]
[1732385483152,7.60236404,255.91,255.82,7.60236404]
[1732385483652,7.60236404,255.91,255.83,20.0]
[1732385486327,7.60236404,255.89,255.83,20.0]
[1732385486531,7.60236404,255.89,255.81,20.0]
[1732385486723,7.60236404,255.89,255.82,7.60236404]
[1732385486950,23.776884,255.96,255.82,7.60236404]
[1732385487133,7.60236404,255.91,255.82,7.60236404]
[1732385488359,7.60236404,255.91,255.83,20.0]
[1732385488582,7.60236404,255.93,255.84,7.60236404]
[1732385488742,7.60236404,255.91,255.83,20.0]
[1732385489832,20.0,256.01,255.87,7.60236404]
[1732385490038,7.60236404,255.99,255.89,7.60236404]
[1732385490242,12.3483169,256.04,255.91,7.60236404]
[1732385490462,7.60236404,256.0,255.91,7.60236404]
[1732385490765,12.18663381,256.06,255.87,6.4821]
[1732385490766,6.0933169,256.06,255.93,7.60236404]
[1732385491057,6.0933169,256.11,255.98,20.0]
[1732385491235,7.60236404,256.07,255.98,20.0]
[1732385492635,7.60236404,256.05,255.98,20.0]
[1732385492939,23.776884,256.12,255.98,20.0]
[1732385493155,7.60236404,256.07,255.97,7.60236404]
[1732385494249,7.60236404,256.05,255.97,7.60236404]
[1732385494642,7.60236404,256.05,255.89,15.6571]
[1732385494937,7.60236404,256.05,255.97,7.60236404]
[1732385495121,7.60236404,256.07,255.97,7.60236404]
[1732385495322,23.776884,256.11,255.99,7.60236404]
[1732385495536,7.60236404,256.08,255.99,7.60236404]
[1732385495922,7.60236404,256.08,256.01,7.60236404]
[1732385496652,7.60236404,256.08,255.99,7.60236404]
[1732385497443,7.60236404,256.04,255.89,24.09854746]
[1732385497640,7.60236404,256.02,255.95,20.0]
[1732385498645,30.40945616,256.1,255.95,20.0]
[1732385498646,23.776884,256.09,255.95,20.0]
[1732385498823,7.60236404,256.04,255.97,20.0]
[1732385499652,7.60236404,256.02,255.95,20.0]
[1732385499825,7.60236404,256.04,255.96,7.60236404]
[1732385500027,7.60236404,256.04,255.97,20.0]
[1732385500543,7.60236404,256.02,255.97,20.0]
[1732385500849,7.60236404,256.0,255.93,7.60236404]
[1732385501055,7.60236404,256.0,255.94,20.0]
[1732385501656,7.60236404,256.02,255.94,20.0]
[1732385501864,7.60236404,256.02,255.95,7.60236404]
[1732385502076,6.0933169,256.12,255.97,7.60236404]
[1732385502077,23.776884,256.09,255.97,7.60236404]
[1732385502362,7.60236404,256.05,255.97,7.60236404]
[1732385502766,6.0933169,256.14,256.04,7.60236404]
[1732385502958,15.8781,256.15,256.04,7.60236404]
[1732385502959,7.60236404,256.13,256.04,7.60236404]
[1732385503538,7.60236404,256.11,256.04,7.60236404]
[1732385504258,7.60236404,256.11,256.02,7.60236404]
[1732385504700,11.86253121,256.1,256.02,11.86253121]
[1732385505167,11.86253121,256.12,256.02,11.86253121]
[1732385505464,11.86253121,256.14,256.07,20.0]
[1732385505843,11.86253121,256.16,256.08,11.86253121]
[1732385506162,11.86253121,256.18,256.11,20.0]
[1732385506841,11.86253121,256.2,256.12,11.86253121]
[1732385507038,11.86253121,256.2,256.13,20.0]
[1732385507640,11.86253121,256.24,256.16,11.86253121]
[1732385507965,15.1899,256.28,256.13,20.0]
[1732385507966,11.86253121,256.26,256.19,20.0]
[1732385508465,11.86253121,256.26,256.18,11.86253121]
[1732385508872,11.86253121,256.28,256.2,11.86253121]
[1732385509174,11.86253121,256.26,256.19,20.0]
[1732385509981,11.86253121,256.28,256.2,11.86253121]
[1732385511570,11.86253121,256.28,256.21,20.0]
[1732385514455,11.86253121,256.3,256.22,11.86253121]
[1732385514670,11.86253121,256.32,256.23,20.0]
[1732385515185,11.86253121,256.34,256.27,11.86253121]
[1732385515358,11.86253121,256.36,256.28,20.0]
[1732385516279,11.86253121,256.34,256.28,20.0]
[1732385516451,11.86253121,256.34,256.25,11.86253121]
[1732385516770,11.86253121,256.34,256.26,20.0]
[1732385517553,11.86253121,256.32,256.24,20.0]
[1732385517952,11.86253121,256.3,256.21,18.12603121]
[1732385518166,11.86253121,256.3,256.22,20.0]
[1732385518672,11.86253121,256.3,256.23,11.86253121]
[1732385519273,23.776884,256.44,256.23,11.86253121]
[1732385519465,11.86253121,256.35,256.27,11.86253121]
[1732385520974,11.86253121,256.37,256.29,31.86253121]
[1732385521349,11.86253121,256.39,256.31,11.86253121]
[1732385521552,11.86253121,256.41,256.33,11.86253121]
[1732385522577,11.86253121,256.37,256.29,31.86253121]
[1732385523367,11.86253121,256.37,256.29,11.86253121]
[1732385523676,11.86253121,256.33,256.28,15.5717]
[1732385523867,11.86253121,256.31,256.23,11.86253121]
[1732385524074,23.776884,256.45,256.25,11.86253121]
[1732385524075,11.86253121,256.33,256.25,11.86253121]
[1732385524566,11.86253121,256.38,256.3,11.86253121]
[1732385524768,20.0,256.44,256.3,11.86253121]
[1732385524967,11.86253121,256.39,256.3,11.86253121]
[1732385526458,11.86253121,256.35,256.27,20.0]
[1732385526664,11.86253121,256.33,256.27,20.0]
[1732385527087,11.86253121,256.31,256.25,20.0]
[1732385527284,11.86253121,256.33,256.25,20.0]
[1732385528682,11.86253121,256.29,256.22,15.5717]
[1732385528864,11.86253121,256.27,256.22,15.5717]
[1732385529659,11.86253121,256.25,256.22,15.5717]
[1732385530269,11.86253121,256.25,256.16,34.66883121]
[1732385530578,11.86253121,256.23,256.16,22.8063]
[1732385530888,11.86253121,256.21,256.16,22.8063]
[1732385531062,11.86253121,256.21,256.16,16.1467]
[1732385531658,11.86253121,256.19,256.1,34.13613121]
[1732385531855,11.86253121,256.17,256.1,22.2736]
[1732385532678,11.86253121,256.19,256.1,34.13613121]
[1732385532863,15.2525,256.35,256.16,11.86253121]
[1732385533060,11.86253121,256.23,256.14,11.86253121]
[1732385533681,11.86253121,256.21,256.14,11.86253121]
[1732385534374,20.0,256.34,256.16,11.86253121]
[1732385534584,11.86253121,256.26,256.18,11.86253121]
[1732385535186,15.2525,256.35,256.2,11.86253121]
[1732385535187,11.86253121,256.28,256.2,11.86253121]
[1732385535493,11.86253121,256.3,256.2,11.86253121]
[1732385535789,11.86253121,256.3,256.21,36.4654]
[1732385536368,16.1039,256.41,256.22,18.32183121]
[1732385536571,11.86253121,256.32,256.24,11.86253121]
[1732385536770,11.86253121,256.3,256.22,18.32183121]
[1732385536965,11.86253121,256.32,256.24,11.86253121]
[1732385537166,11.86253121,256.34,256.24,11.86253121]
[1732385537483,11.86253121,256.34,256.26,11.86253121]
[1732385537782,11.86253121,256.32,256.24,11.86253121]
[1732385538592,11.86253121,256.3,256.23,20.0]
[1732385539373,11.86253121,256.32,256.24,11.86253121]
[1732385540269,11.86253121,256.36,256.28,11.86253121]
[1732385540669,11.86253121,256.36,256.26,11.86253121]
[1732385540869,11.86253121,256.36,256.27,23.776884]
[1732385541073,11.86253121,256.36,256.28,11.86253121]
[1732385542090,11.86253121,256.34,256.26,11.86253121]
[1732385542589,11.86253121,256.3,256.23,20.0]
[1732385544299,11.86253121,256.28,256.22,6.4593]
[1732385545180,11.86253121,256.32,256.22,18.32183121]
[1732385546874,11.86253121,256.3,256.22,18.32183121]
[1732385547076,10.0,256.44,256.22,18.32183121]
[1732385547077,20.0,256.44,256.22,18.32183121]
[1732385547276,11.86253121,256.32,256.23,20.0]
[1732385548589,11.86253121,256.36,256.26,11.86253121]
[1732385548899,11.86253121,256.36,256.28,11.86253121]
[1732385549085,3.13746879,256.26,256.25,20.0]
[1732385549405,11.86253121,256.39,256.35,134.66253121]
[1732385549691,11.86253121,256.39,256.3,11.86253121]
[1732385550281,10.0,256.51,256.3,11.86253121]
[1732385550498,11.86253121,256.38,256.3,11.86253121]
[1732385550983,11.86253121,256.36,256.28,11.86253121]
[1732385551184,11.86253121,256.34,256.25,20.0]
[1732385551494,26.1039,256.48,256.25,20.0]
[1732385551495,11.86253121,256.32,256.25,20.0]
[1732385551884,11.86253121,256.32,256.24,11.86253121]
[1732385552083,11.86253121,256.34,256.25,20.0]
[1732385554195,11.86253121,256.34,256.27,20.0]
[1732385555292,36.1039,256.48,256.24,11.86253121]
[1732385555609,11.86253121,256.35,256.27,20.0]
[1732385555787,11.86253121,256.33,256.27,20.0]
[1732385557117,11.86253121,256.33,256.25,20.0]
[1732385560083,11.86253121,256.33,256.25,23.776884]
[1732385564734,7.57841142,256.33,256.24,7.57841142]
[1732385565210,42.1972169,256.48,256.21,16.4654]
[1732385565211,7.57841142,256.28,256.21,16.4654]
[1732385565911,7.57841142,256.3,256.21,7.57841142]
[1732385566219,6.4188,256.36,256.23,7.57841142]
[1732385566511,7.57841142,256.33,256.23,11.98741502]
[1732385566813,7.57841142,256.31,256.23,11.98741502]
[1732385567006,7.57841142,256.31,256.23,7.57841142]
[1732385568012,7.57841142,256.31,256.2,7.60082858]
[1732385568216,7.57841142,256.29,256.2,7.57841142]
[1732385568997,7.57841142,256.27,256.18,7.57841142]
[1732385569719,7.57841142,256.27,256.19,23.776884]
[1732385571606,7.57841142,256.25,256.16,23.75122755]
[1732385571895,7.57841142,256.25,256.17,7.57841142]
[1732385572915,7.57841142,256.25,256.18,23.776884]
[1732385574911,20.0,256.35,256.29,130.22158858]
[1732385575120,7.57841142,256.3,256.18,23.776884]
[1732385575301,7.57841142,256.25,256.18,23.776884]
[1732385575496,7.57841142,256.23,256.16,7.91522755]
[1732385575695,7.57841142,256.23,256.15,7.57841142]
[1732385579124,7.57841142,256.27,256.17,7.57841142]
[1732385579518,20.0,256.33,256.17,7.57841142]
[1732385579706,7.57841142,256.26,256.17,7.57841142]
[1732385580202,16.2387,256.36,256.2,7.57841142]
[1732385580416,6.0933169,256.45,256.34,7.57841142]
[1732385580602,22.5128169,256.5,256.38,7.57841142]
[1732385580804,16.4195,256.5,256.39,6.68279163]
[1732385581123,16.4195,256.5,256.4,13.261033]
[1732385581427,13.59561142,256.51,256.42,7.57841142]
[1732385581720,13.59561142,256.51,256.42,6.68279163]
[1732385582268,0.57781455,256.49,256.42,6.68279163]
[1732385582625,11.82721787,256.48,256.42,6.68279163]
[1732385583815,11.82721787,256.5,256.42,6.68279163]
[1732385584031,11.82721787,256.5,256.42,11.40270021]
[1732385584417,11.82721787,256.46,256.35,11.82721787]
[1732385584655,11.82721787,256.4,256.27,5.68262158]
[1732385584843,11.82721787,256.4,256.32,11.82721787]
[1732385585056,11.82721787,256.42,256.32,11.82721787]
[1732385586344,11.82721787,256.44,256.36,11.82721787]
[1732385586557,11.82721787,256.46,256.37,6.35627666]
[1732385586756,6.0172,256.51,256.37,6.35627666]
[1732385586757,11.82721787,256.48,256.4,11.82721787]
[1732385587049,11.82721787,256.48,256.4,18.18349453]
[1732385587553,16.4195,256.56,256.52,119.95558213]
[1732385587718,11.82721787,256.53,256.4,18.18349453]
[1732385587925,11.82721787,256.49,256.4,18.18349453]
[1732385588148,11.82721787,256.49,256.41,6.35627666]
[1732385588551,16.4195,256.56,256.42,11.82721787]
[1732385588854,11.82721787,256.52,256.43,6.35627666]
[1732385589557,11.82721787,256.54,256.44,11.82721787]
[1732385589723,11.82721787,256.54,256.46,11.82721787]
[1732385590047,11.82721787,256.54,256.46,18.18349453]
[1732385590638,11.82721787,256.52,256.46,6.35627666]
[1732385590846,11.82721787,256.52,256.42,11.82721787]
[1732385591054,11.82721787,256.52,256.43,6.35627666]
[1732385591358,11.82721787,256.52,256.44,11.82721787]
[1732385592420,11.82721787,256.52,256.45,6.35627666]
[1732385593116,11.82721787,256.54,256.45,6.35627666]
[1732385593308,11.82721787,256.52,256.45,6.35627666]
[1732385595027,11.82721787,256.54,256.45,6.35627666]
[1732385595433,11.82721787,256.54,256.46,11.82721787]
[1732385595618,11.82721787,256.54,256.46,18.18349453]
[1732385595932,11.82721787,256.54,256.47,6.35627666]
[1732385596934,23.776884,256.61,256.47,6.35627666]
[1732385597141,11.82721787,256.55,256.47,6.35627666]
[1732385597828,15.9727,256.62,256.59,137.8]
[1732385598169,7.75544108,256.76,256.52,11.82721787]
[1732385598469,11.82721787,256.64,256.56,18.18349453]
[1732385599151,11.82721787,256.66,256.58,11.82721787]
[1732385599354,11.82721787,256.66,256.58,18.18349453]
[1732385600272,11.82721787,256.66,256.58,6.35627666]
[1732385600455,11.82721787,256.64,256.58,6.35627666]
[1732385600945,23.776884,256.74,256.58,6.35627666]
[1732385601140,11.82721787,256.65,256.58,6.35627666]
[1732385601459,11.82721787,256.61,256.58,6.35627666]
[1732385601974,11.82721787,256.61,256.53,5.68262158]
[1732385602361,11.82721787,256.59,256.53,5.68262158]
[1732385602570,11.82721787,256.59,256.49,16.4745]
[1732385602571,11.82721787,256.59,256.5,11.82721787]
[1732385602777,11.82721787,256.57,256.5,11.82721787]
[1732385603456,43.776884,256.69,256.5,11.82721787]
[1732385603651,11.82721787,256.58,256.5,23.28833833]
[1732385603841,43.776884,256.69,256.62,125.97278213]
[1732385604046,11.82721787,256.63,256.5,23.28833833]
[1732385604247,11.82721787,256.58,256.5,17.60571675]
[1732385604445,11.82721787,256.58,256.51,5.68262158]
[1732385605750,11.82721787,256.56,256.51,5.68262158]
[1732385607451,11.82721787,256.54,256.49,16.4745]
[1732385608168,11.82721787,256.52,256.47,5.77849888]
[1732385608671,11.82721787,256.5,256.45,5.68262158]
[1732385608867,43.776884,256.61,256.55,125.97278213]
[1732385609169,43.776884,256.61,256.45,5.68262158]
[1732385609378,11.82721787,256.5,256.45,5.68262158]
[1732385610357,11.82721787,256.54,256.46,5.77849888]
[1732385610568,11.82721787,256.54,256.47,5.68262158]
[1732385610757,11.82721787,256.54,256.48,5.77849888]
[1732385612184,11.82721787,256.58,256.49,11.82721787]
[1732385612361,11.82721787,256.56,256.49,5.68262158]
[1732385613257,11.82721787,256.52,256.48,5.77849888]
[1732385614363,11.82721787,256.5,256.48,5.77849888]
[1732385614660,11.82721787,256.5,256.43,15.3918]
[1732385614960,15.9815,256.63,256.43,15.3918]
[1732385614961,43.776884,256.61,256.46,11.82721787]
[1732385615153,11.82721787,256.54,256.47,11.46112046]
[1732385618351,11.82721787,256.5,256.43,15.3918]
[1732385618550,43.776884,256.61,256.43,15.3918]
[1732385618852,11.82721787,256.46,256.4,11.46112046]
[1732385619066,43.776884,256.57,256.52,125.97278213]
[1732385619361,11.82721787,256.53,256.4,5.77849888]
[1732385619561,11.82721787,256.45,256.4,5.77849888]
[1732385621444,11.82721787,256.47,256.4,5.77849888]
[1732385621637,11.82721787,256.47,256.4,17.60571675]
[1732385622442,11.82721787,256.49,256.4,17.60571675]
[1732385623735,20.0,256.61,256.41,23.776884]
[1732385623939,11.82721787,256.52,256.43,23.776884]
[1732385624138,20.0,256.61,256.58,125.97278213]
[1732385624359,20.0,256.61,256.43,35.60410187]
[1732385624564,11.82721787,256.52,256.43,35.60410187]
[1732385624752,11.82721787,256.52,256.43,11.82721787]
[1732385624943,11.82721787,256.54,256.45,11.82721787]
[1732385626057,11.82721787,256.54,256.46,21.6024]
[1732385626361,20.0,256.58,256.5,11.82721787]
[1732385626554,11.82721787,256.57,256.48,11.82721787]
[1732385626748,11.82721787,256.57,256.48,17.60571675]
[1732385627065,11.82721787,256.57,256.49,5.77849888]
[1732385627280,11.82721787,256.55,256.49,5.77849888]
[1732385627939,11.82721787,256.53,256.46,27.28502158]
[1732385628141,11.82721787,256.62,256.4,7.64850001]
[1732385628142,11.82721787,256.47,256.4,7.64850001]
[1732385628347,11.82721787,256.47,256.39,11.82721787]
[1732385628667,11.82721787,256.47,256.39,17.50983945]
[1732385629563,11.82721787,256.45,256.39,5.68262158]
[1732385631067,11.82721787,256.47,256.39,5.68262158]
[1732385631239,11.82721787,256.45,256.39,5.68262158]
[1732385631554,11.82721787,256.47,256.39,17.50983945]
[1732385632297,20.0,256.56,256.52,125.97278213]
[1732385632462,11.82721787,256.53,256.39,5.68262158]
[1732385632664,11.82721787,256.47,256.39,5.68262158]
[1732385633170,20.0,256.56,256.39,5.68262158]
[1732385633171,11.82721787,256.45,256.39,5.68262158]
[1732385633362,11.82721787,256.45,256.36,17.02808341]
[1732385633866,11.82721787,256.45,256.36,22.71070499]
[1732385634669,11.82721787,256.45,256.37,5.68262158]
[1732385634967,11.82721787,256.47,256.38,11.82721787]
[1732385635371,11.82721787,256.47,256.38,17.50983945]
[1732385635545,11.82721787,256.49,256.4,11.82721787]
[1732385636571,11.82721787,256.47,256.39,5.68262158]
[1732385638462,20.0,256.54,256.53,125.97278213]
[1732385638652,27.57127991,256.54,256.36,18.45476703]
[1732385638854,7.57127991,256.44,256.36,18.45476703]
[1732385640676,11.83011783,256.45,256.36,22.71360495]
[1732385640972,11.83011783,256.45,256.37,5.68262158]
[1732385641181,11.83011783,256.47,256.38,11.83011783]
[1732385641357,11.83011783,256.47,256.38,17.51273941]
[1732385642270,11.83011783,256.47,256.38,11.83011783]
[1732385642463,11.83011783,256.49,256.4,11.83011783]
[1732385642778,11.83011783,256.49,256.4,17.51273941]
[1732385645364,20.0,256.55,256.4,17.51273941]
[1732385645579,11.83011783,256.5,256.4,17.51273941]
[1732385645785,11.83011783,256.5,256.42,11.83011783]
[1732385646080,11.83011783,256.5,256.42,44.35510495]
[1732385646594,11.83011783,256.52,256.42,44.35510495]
[1732385646753,11.83011783,256.52,256.43,5.68262158]
[1732385647185,11.83011783,256.62,256.46,11.83011783]
[1732385647186,11.83011783,256.56,256.46,11.83011783]
[1732385647355,15.191,256.63,256.6,125.96988217]
[1732385647657,23.66023566,256.62,256.47,11.83011783]
[1732385647852,11.83011783,256.55,256.47,11.83011783]
[1732385648876,11.83011783,256.51,256.47,5.68262158]
[1732385649065,11.83011783,256.51,256.42,23.776884]
[1732385649265,11.83011783,256.49,256.42,23.776884]
[1732385650473,11.83011783,256.51,256.43,5.68262158]
[1732385650790,11.83011783,256.51,256.43,10.88348712]
[1732385652560,11.83011783,256.49,256.43,10.88348712]
[1732385652868,20.0,256.59,256.57,125.96988217]
[1732385653075,20.0,256.59,256.43,10.88348712]
[1732385653076,20.0,256.57,256.43,10.88348712]
[1732385653287,11.83011783,256.49,256.43,10.88348712]
[1732385653786,11.83011783,256.51,256.43,22.71360495]
[1732385653969,20.0,256.59,256.43,22.71360495]
[1732385654168,11.83011783,256.52,256.43,22.71360495]
[1732385656065,20.0,256.59,256.45,11.83011783]
[1732385656389,11.83011783,256.54,256.45,17.51273941]
[1732385656983,11.83011783,256.52,256.45,5.68262158]
[1732385657186,11.83011783,256.5,256.45,5.68262158]
[1732385658206,11.83011783,256.46,256.39,27.32412158]
[1732385658401,50.177284,256.57,256.56,125.96988217]
[1732385658653,23.776884,256.54,256.39,5.68262158]
[1732385659014,23.776884,256.52,256.39,5.68262158]
[1732385659225,11.83011783,256.43,256.39,5.68262158]
[1732385659518,2.10756722,256.43,256.39,5.68262158]
[1732385660026,11.83011783,256.4,256.37,5.20086554]
[1732385660209,11.83011783,256.42,256.37,5.20086554]
[1732385660397,11.83011783,256.42,256.37,10.88348712]
[1732385660731,11.83011783,256.44,256.37,10.88348712]
[1732385661233,11.83011783,256.44,256.38,23.776884]
[1732385662032,11.83011783,256.42,256.38,23.776884]
[1732385662820,11.83011783,256.42,256.37,10.88348712]
[1732385663122,11.83011783,256.4,256.37,5.20086554]
[1732385664909,10.0,256.54,256.49,114.13976434]
[1732385665108,23.66023566,256.5,256.37,5.20086554]
[1732385665324,11.83011783,256.41,256.37,5.20086554]
[1732385665542,11.83011783,256.38,256.31,5.68262158]
[1732385665716,11.83011783,256.36,256.31,5.68262158]
[1732385665908,11.83011783,256.34,256.31,5.68262158]
[1732385666159,11.83011783,256.34,256.29,5.20086554]
[1732385666813,7.57817029,256.34,256.29,5.20086554]
[1732385667619,15.6335,256.45,256.26,22.8288]
[1732385667620,20.0,256.44,256.26,7.57817029]
[1732385667928,7.57817029,256.34,256.26,7.57817029]
[1732385668809,11.84117642,256.31,256.23,11.84117642]
[1732385669135,11.84117642,256.29,256.21,11.84117642]
[1732385669707,11.84117642,256.27,256.19,11.84117642]
[1732385669909,11.84117642,256.27,256.18,5.16915078]
[1732385670109,11.84117642,256.25,256.18,5.16915078]
[1732385670303,11.84117642,256.27,256.18,5.16915078]
[1732385670945,11.84117642,256.27,256.19,23.776884]
[1732385671726,11.84117642,256.27,256.19,35.61806042]
[1732385671925,15.6335,256.34,256.19,35.61806042]
[1732385671926,11.84117642,256.29,256.21,11.84117642]
[1732385672109,11.84117642,256.29,256.22,23.776884]
[1732385672633,11.84117642,256.29,256.19,5.0541717]
[1732385672634,11.84117642,256.27,256.19,5.0541717]
[1732385672934,11.84117642,256.27,256.2,23.776884]
[1732385674122,11.84117642,256.25,256.17,19.47079896]
[1732385674332,11.84117642,256.25,256.17,11.84117642]
[1732385674798,11.84117642,256.27,256.17,11.84117642]
[1732385675629,11.84117642,256.27,256.18,23.776884]
[1732385675800,11.84117642,256.25,256.18,23.776884]
[1732385677401,11.84117642,256.27,256.19,11.84117642]
[1732385677581,11.84117642,256.29,256.21,11.84117642]
[1732385677784,11.84117642,256.29,256.22,23.776884]
[1732385678609,11.84117642,256.27,256.2,23.776884]
[1732385679385,11.84117642,256.25,256.18,23.776884]
[1732385679788,11.84117642,256.27,256.2,23.776884]
[1732385679986,20.0,256.33,256.31,125.95882358]
[1732385680182,20.0,256.31,256.2,23.776884]
[1732385680401,11.84117642,256.27,256.2,23.776884]
[1732385685997,15.6335,256.34,256.32,125.95882358]
[1732385686204,15.6335,256.34,256.2,23.776884]
[1732385686205,11.84117642,256.33,256.2,23.776884]
[1732385686384,11.84117642,256.28,256.2,23.776884]
[1732385688699,7.58195053,256.28,256.2,23.776884]
[1732385692107,15.6335,256.34,256.32,130.21804947]
[1732385692314,7.58195053,256.33,256.2,23.776884]
[1732385692512,7.58195053,256.27,256.2,23.776884]
[1732385694205,3.58195053,256.27,256.2,23.776884]
[1732385695209,7.58195053,256.21,256.09,21.453]
[1732385695518,7.58195053,256.19,256.11,7.58195053]
[1732385695694,7.58195053,256.19,256.12,13.13231301]
[1732385695895,7.58195053,256.17,256.12,7.96316223]
[1732385696291,15.9859,256.24,256.13,12.63612223]
[1732385696495,7.58195053,256.22,256.13,12.63612223]
[1732385696803,7.58195053,256.2,256.13,12.63612223]
[1732385697195,7.58195053,256.2,256.14,23.776884]
[1732385698607,7.58195053,256.2,256.13,5.0541717]
[1732385698804,7.58195053,256.2,256.11,15.42213557]
[1732385699123,7.58195053,256.2,256.12,23.776884]
[1732385701097,6.2005,256.26,256.24,114.23214947]
[1732385701402,7.58195053,256.25,256.12,23.776884]
[1732385701596,7.58195053,256.19,256.12,23.776884]
[1732385702604,7.58195053,256.19,256.12,31.35883453]
[1732385702917,7.58195053,256.19,256.12,23.776884]
[1732385704811,15.9859,256.26,256.18,7.58195053]
[1732385705008,10.0,256.39,256.22,7.58195053]
[1732385705009,6.2005,256.39,256.22,7.58195053]
[1732385705310,7.58195053,256.31,256.23,23.776884]
[1732385706009,7.58195053,256.31,256.24,7.58195053]
[1732385706306,7.58195053,256.37,256.28,7.58195053]
[1732385706614,7.58195053,256.37,256.29,23.776884]
[1732385707538,6.1301,256.45,256.31,23.776884]
[1732385707825,7.58195053,256.4,256.33,23.776884]
[1732385708213,2.6731,256.48,256.34,7.58195053]
[1732385708415,7.58195053,256.44,256.37,23.776884]
[1732385708617,6.1301,256.51,256.38,7.58195053]
[1732385708915,7.58195053,256.49,256.41,23.776884]
[1732385709121,7.58195053,256.47,256.38,7.58195053]
[1732385709322,7.58195053,256.45,256.39,23.776884]
[1732385710112,7.58195053,256.41,256.34,23.776884]
[1732385710822,7.58195053,256.43,256.35,7.58195053]
[1732385711700,7.58195053,256.41,256.34,23.776884]
[1732385713137,7.58195053,256.37,256.32,23.776884]
[1732385713432,20.0,256.48,256.41,130.21804947]
[1732385713725,20.0,256.48,256.31,23.43385053]
[1732385713726,20.0,256.48,256.33,23.776884]
[1732385714026,20.0,256.42,256.33,5.16915078]
[1732385714218,20.0,256.42,256.34,7.58195053]
[1732385714740,7.58195053,256.39,256.32,7.58195053]
[1732385714936,7.58195053,256.39,256.31,15.8519]
[1732385715237,7.58195053,256.39,256.32,7.58195053]
[1732385715920,7.58195053,256.41,256.32,7.58195053]
[1732385716607,20.0,256.42,256.34,7.58195053]
[1732385716808,20.0,256.48,256.34,12.75110131]
[1732385717008,7.58195053,256.44,256.34,12.75110131]
[1732385717208,20.0,256.48,256.33,23.776884]
[1732385717209,7.58195053,256.48,256.38,7.58195053]
[1732385717830,7.58195053,256.46,256.38,7.58195053]
[1732385718219,2.6731,256.54,256.38,7.58195053]
[1732385718443,7.58195053,256.47,256.38,7.58195053]
[1732385719632,20.0,256.46,256.38,7.58195053]
[1732385720027,20.0,256.46,256.4,7.58195053]
[1732385720216,20.0,256.56,256.52,117.8]
[1732385720421,6.1301,256.57,256.44,7.58195053]
[1732385720619,7.58195053,256.53,256.44,7.58195053]
[1732385721541,2.6731,256.59,256.44,7.58195053]
[1732385721542,2.6731,256.59,256.45,23.776884]
[1732385721710,7.58195053,256.55,256.46,7.58195053]
[1732385722370,7.58195053,256.54,256.46,7.58195053]
[1732385722840,11.82398037,256.53,256.44,11.82398037]
[1732385723039,11.82398037,256.53,256.45,23.776884]
[1732385725551,11.82398037,256.51,256.43,23.776884]
[1732385725837,2.6731,256.59,256.57,125.97601963]
[1732385726027,2.6731,256.59,256.43,23.776884]
[1732385726229,2.6731,256.59,256.42,15.0458]
[1732385726939,11.82398037,256.49,256.42,15.0458]
[1732385727634,11.82398037,256.49,256.42,26.86978037]
[1732385728427,11.82398037,256.49,256.42,15.0458]
[1732385728650,2.5561866,256.59,256.43,20.0]
[1732385728944,11.82398037,256.49,256.43,20.0]